Workbook

Sheet RunSimul
A1: pRisk
A3: Parameter | B3: Value
A4: Number of simulations | B4: 3000
A5: Cell to analyse | B5: =endOfProject -> 11.71339407
A6: Plot | B6: cdf
A7: Result: Mean | B7: 10.79323015
A8: Result: SD | B8: 0.6334265786
A9: Result: Min | B9: 8.796134949
A10: Result: Max | B10: 12.96636009

Sheet MCS
A1: Activity | B1: L | C1: M | D1: H | E1: Start | F1: Duration | G1: End | I1: Formulas, Start | J1: Formulas, Duration | K1: Formulas, End
A2: Preparation | B2: 1 | C2: 2 | D2: 3 | E2: 0 | F2: =rndPERT(RAND(),B2,C2,D2) -> 2.270639386 | G2: =E2+F2 -> 2.270639386 | I2: =showformula(E2) -> 0 | J2: =showformula(F2) -> =rndPERT(RAND(),B2,C2,D2) | K2: =showformula(G2) -> =E2+F2
A3: Module 1 | B3: 4 | C3: 5 | D3: 7 | E3: =G2 -> 2.270639386 | F3: =rndPERT(RAND(),B3,C3,D3) -> 5.821422093 | G3: =E3+F3 -> 8.092061479 | I3: =showformula(E3) -> =G2 | J3: =showformula(F3) -> =rndPERT(RAND(),B3,C3,D3) | K3: =E3+F3
A4: Module 2 | B4: 3 | C4: 5 | D4: 6 | E4: =G2 -> 2.270639386 | F4: 5.316507362 | G4: 7.587146749 | I4: =G2 | J4: =rndPERT(RAND(),B4,C4,D4) | K4: =E4+F4
A5: Assembling | B5: 1.8 | C5: 2 | D5: 2.5 | E5: =MAX(G3,G4) -> 8.092061479 | F5: 2.091259024 | G5: 10.1833205 | I5: =MAX(G3,G4) | J5: =rndPERT(RAND(),B5,C5,D5) | K5: =E5+F5
A6: Shipping offshore | B6: 0.1 | C6: 0.2 | D6: 0.3 | E6: =G5 -> 10.1833205 | F6: 0.2354007432 | G6: 10.41872125 | I6: =G5 | J6: =rndPERT(RAND(),B6,C6,D6) | K6: =E6+F6
A7: Installation offshore | B7: 1 | C7: 1.2 | D7: 1.5 | E7: =G6 -> 10.41872125 | F7: 1.294672825 | G7: 11.71339407 | I7: =G6 | J7: =rndPERT(RAND(),B7,C7,D7) | K7: =E7+F7
I8: =showformula(E8) -> 
I67: =showformula(E67) -> 
I68: =showformula(E68) -> 
I69: =showformula(E69) -> 

Sheet SSP
A1: Activity | B1: L | C1: M | D1: H | E1: mi | F1: si2 | G1: EiF | H1: ViF | J1: Formula EiF | M1: Formula ViF
A2: Preparation | B2: 1 | C2: 2 | D2: 3 | E2: =(B2+4*C2+D2)/6 -> 2 | F2: =((E2-B2)*(D2-E2)/7) -> 0.1428571429 | G2: =0+E2 -> 2 | H2: =0+F2 -> 0.1428571429 | J2: =showformula(G2) -> =0+E2 | M2: =showformula(H2) -> =0+F2
A3: Module 1 | B3: 4 | C3: 5 | D3: 7 | E3: 5.166666667 | F3: 0.3055555556 | G3: =G2+E3 -> 7.166666667 | H3: =H2+F3 -> 0.4484126984 | J3: =showformula(G3) -> =G2+E3 | M3: =showformula(H3) -> =H2+F3
A4: Module 2 | B4: 3 | C4: 5 | D4: 6 | E4: 4.833333333 | F4: 0.3055555556 | G4: =G2+E4 -> 6.833333333 | H4: =H2+F4 -> 0.4484126984 | J4: =G2+E4 | M4: =showformula(H4) -> =H2+F4
A5: V | G5: =eMax(G3,H3-H2,G4,H4-H2) -> 7.339794636 | H5: =varMax(G3,H3-H2,G4,H4-H2)+H2 -> 0.3607260819 | J5: =eMax(G3,H3-H2,G4,H4-H2) | M5: =showformula(H5) -> =varMax(G3,H3-H2,G4,H4-H2)+H2
A6: Assembling | B6: 1.8 | C6: 2 | D6: 2.5 | E6: 2.05 | F6: 0.01607142857 | G6: =G5+E6 -> 9.389794636 | H6: =H5+F6 -> 0.3767975105 | J6: =G5+E6 | M6: =showformula(H6) -> =H5+F6
A7: Shipping offshore | B7: 0.1 | C7: 0.2 | D7: 0.3 | E7: 0.2 | F7: 0.001428571429 | G7: =G6+E7 -> 9.589794636 | H7: 0.3782260819 | J7: =G6+E7 | M7: =showformula(H7) -> =H6+F7
A8: Installation offshore | B8: 1 | C8: 1.2 | D8: 1.5 | E8: 1.216666667 | F8: 0.00876984127 | G8: 10.8064613 | H8: 0.3869959232 | J8: =G7+E8 | M8: =showformula(H8) -> =H7+F8
G10: Quantity | H10: Value | J10: Formula
G11: E(Final) | H11: =G8 -> 10.8064613 | J11: =showformula(H11) -> =G8
G12: SD(Final) | H12: =SQRT(H8) -> 0.6220899639 | J12: =SQRT(H8)
G13: Pr(T>11) | H13: =1-cdfNormal(11,E_SSP,SD_SSP) -> 0.3778584599 | J13: =1-cdfNormal(11,E_SSP,SD_SSP)
G14: E(# months delayed) | H14: =numInt("(x-11)*pdfnormal(x,E_SSP,SD_SSP)",11,E_SSP+5*SD_SSP) -> 0.1633229256 | J14: =numInt("(x-11)*pdfnormal(x,E_SSP,SD_SSP)",11,E_SSP+5*SD_SSP)
G15: Backorder function, B(r) | H15: =b(11,E_SSP,SD_SSP) -> 0.163323253 | J15: =b(11,E_SSP,SD_SSP)
E20: Note:
E21: Branching point is given in row 2, and we need H2 for accumulated variance at the branching point
E22: End of upper branch is given in row 3, and we need G3 for accumulated expected values, and H3 for accumulated variance
E23: End of lower branch is given in row 4, and we need G4 for accumulated expected values, and H4 for accumulated variance

Sheet PERT
A1: Activity | B1: L | C1: M | D1: H | E1: mi | F1: si2 | G1: In crit. Path | H1: E | I1: V
E2: =(B2+4*C2+D2)/6 -> 0 | F2: =((E2-B2)*(D2-E2)/7) -> 0 | H2: =E2*G2 -> 0 | I2: =F2*G2 -> 0
E3: =(B3+4*C3+D3)/6 -> 0 | F3: =((E3-B3)*(D3-E3)/7) -> 0 | H3: 0 | I3: =F3*G3 -> 0
E4: 0 | F4: 0 | H4: 0 | I4: 0
E5: 0 | F5: 0 | H5: 0 | I5: 0
E6: 0 | F6: 0 | H6: 0 | I6: 0
E7: 0 | F7: 0 | H7: 0 | I7: 0
E8: 0 | F8: 0 | H8: 0 | I8: 0
E9: 0 | F9: 0 | H9: 0 | I9: 0
E10: 0 | F10: 0 | H10: 0 | I10: 0
G14: Sum | H14: =SUM(H2:H13) -> 0 | I14: =SUM(I2:I13) -> 0 | J14: =SQRT(I14) -> 0

Sheet HelpFunc

Sheet CellNames
A1: Parameter | B1: Value
A2: mu | B2: 10
A3: sigma | B3: 2
A4: L | B4: 6
A5: M | B5: 9.3
A6: H | B6: 17
A7: DD | B7: 12
A10: Examples of use
A11: Parameter | B11: Value | C11: Formula | D11: Comment
A12: ePert | B12: =ePERT(L,M,H) -> 10.03333378 | C12: =showformula(B12) -> =ePERT(L,M,H)
A13: ePert | B13: =ePERT(B4,B5,B6) -> 10.03333378 | C13: =showformula(B13) -> =ePERT(B4,B5,B6) | D13: We may still refer to the origianal cell names, i.e., B4, B5 and B6
A14: varPert | B14: =varPERT(L,M,H) -> 4.014127254 | C14: =showformula(B14) -> =varPERT(L,M,H)
A15: Pr(T>DD) | B15: =1-cdfNormal(DD,mu,sigma) -> 0.1586552858 | C15: =showformula(B15) -> =1-cdfNormal(DD,mu,sigma) | D15: Note, the result depends on the distribution, i.e., Normal and PERT give different results
A16: Pr(T>DD) | B16: =1-_xlfn.NORM.DIST(DD,mu,sigma,TRUE) -> 0.1586552539 | C16: =showformula(B16) -> =1-NORM.DIST(DD,mu,sigma,TRUE) | D16: Note, that Excel has it's own buildt in function for the normal distribution, different arguments!
A17: Pr(T>DD) | B17: =1-cdfPERT(DD,L,M,H) -> 0.1789758085 | C17: =showformula(B17) -> =1-cdfPERT(DD,L,M,H)
A18: E(#days>DD) | B18: =numInt("(x-DD)*pdfNormal(x,mu,sigma)",DD,mu+5*sigma) -> 0.1666285247 | C18: =showformula(B18) -> =numInt("(x-DD)*pdfNormal(x,mu,sigma)",DD,mu+5*sigma) | D18: The syntax for the "integrand" is always given in "English". List seperator is following settings on your PC/Mac
A19: E(#days>DD) | B19: =b(DD,mu,sigma) -> 0.1666309412 | C19: =showformula(B19) -> =b(DD,mu,sigma) | D19: Backorder function is easier….

Sheet Info
A1: Link to this file | C1: https://folk.ntnu.no/jvatn/eLearning/commonFiles/pRiskDemo.xlsm
A2: Link to eLearning | C2: https://folk.ntnu.no/jvatn/eLearning/vba/
A3: Link to pRisk | C3: https://folk.ntnu.no/jvatn/eLearning/commonFiles/pRiskEmpty.xlsm
A6: Note 1: Case-sensitive links!
A7: Note 2: You need to download pRisk in order to use the pRisk functions shown in the examples
A8: Note 3: You need to enable macros to use the pRisk functions

Sheet 3.3 syntax
A1: Quantity | B1: Value | C1: Formula | D1: Comment
A2: PDF-test | B2: =numInt("PDFtriangular(x,200,240,350)",200,350) -> 0.9999918342 | C2: =showformula(B2) -> =numInt("PDFtriangular(x,200,240,350)",200,350) | D2: Should be 1
A3: Expectation | B3: =numInt("x*PDFtriangular(x,200,240,350)",200,350) -> 263.3312683 | C3: =showformula(B3) -> =numInt("x*PDFtriangular(x,200,240,350)",200,350) | D3: Should be: | E3: =(200+240+350)/3 -> 263.3333333 | F3: =showformula(E3) -> =(200+240+350)/3
A4: Expected penalty | B4: =numInt("100*(x-220)*PDFtriangular(x,200,240,350)",220,350) -> 4438.383789 | C4: =showformula(B4) -> =numInt("100*(x-220)*PDFtriangular(x,200,240,350)",220,350)
A7: Note the use of "comma", "period" and "semicolon": In English a period is used for separating the integer and decimal part of a number, e.g.; p = 3.14. In Norwegian, German and other languages a comma is used, i.e., p = 3,14. In English the comma is used (as default) to separate arguments in functions, for example MAX(4,5) = 5. In Norway and other countries the default is to use a semicolon to separate arguments, for example STØRST(4;5) = 5. It is possible to configure the PC (or Mac?) to use the English convention. Note that the integrand is a text-string sent to the VBA programming language, which only accepts standard English notation.
A16: Example | B16: =numInt("min(x,0.5)",0,1.5) -> 0.625 | C16: =showformula(B16) -> =numInt("min(x,0.5)",0,1.5) | D16: Enligsh sytax in the integrand, i.e. the "string"

Sheet eMax
A1: Parameter | B1: Value
A2: mu1 | B2: 10
A3: sigma1 | B3: 2
A4: mu2 | B4: 11
A5: sigma2 | B5: 2
A9: Parameter | B9: Value | C9: Formula
A10: eMax | B10: =eMax(mu_1,sigma_1^2,mu_2,sigma_2^2) -> 11.69817066 | C10: =showformula(B10) -> =eMax(mu_1,sigma_1^2,mu_2,sigma_2^2)
A11: varMax | B11: =varMax(mu_1,sigma_1^2,mu_2,sigma_2^2) -> 2.814342022 | C11: =showformula(B11) -> =varMax(mu_1,sigma_1^2,mu_2,sigma_2^2)
A15: Note, the "numInt" function cannot "resolve" too many cell-names, but original cellnames are OK
A16: Parameter | B16: Value | C16: Formula
A17: eMax | B17: =numInt("x*(pdfNormal(x,B2,B3)*cdfNormal(x,B4,B5)+cdfNormal(x,B2,B3)*pdfNormal(x,B4,B5))",0,20) -> 11.69810104 | C17: =showformula(B17) -> =numInt("x*(pdfNormal(x,B2,B3)*cdfNormal(x,B4,B5)+cdfNormal(x,B2,B3)*pdfNormal(x,B4,B5))",0,20)

Sheet 3.7 Plot
A1: x | B1: PDF
A2: 0.5 | B2: =0.353*PDFPert(A2,2,2.5,3.5)+(1-0.353)*PDFPert(A2,0.5,1,2.5) -> 0
A3: =A2+0.2 -> 0.7 | B3: =0.353*PDFPert(A3,2,2.5,3.5)+(1-0.353)*PDFPert(A3,0.5,1,2.5) -> 0.4716628677
A4: =A3+0.2 -> 0.9 | B4: 0.6625279587
A5: 1.1 | B5: 0.6657630464
A6: 1.3 | B6: 0.5590081375
A7: 1.5 | B7: 0.4043751145
A8: 1.7 | B8: 0.2484480598
A9: 1.9 | B9: 0.1222830718
A10: 2.1 | B10: 0.1743546195
A11: 2.3 | B11: 0.3871651502
A12: 2.5 | B12: 0.4634078452
A13: 2.7 | B13: 0.400289489
A14: 2.9 | B14: 0.2598544969
A15: 3.1 | B15: 0.1151739592
A16: 3.3 | B16: 0.02266429063
A17: 3.5 | B17: 0
A21: From Problem 3.6
A22: In the unconditional distribution we find E(T) = 1.6667. Using eq. 3.18 we find that when we introduce the event B we have E(T) = Pr(B)*2.5833+(1-Pr(B))*1.1667. Now, solwing E(T) = 1.6667 with respect to Pr(B) gives Pr(B) = 0.353.

Sheet PDFPlot (hidden)
A1: x | B1: Cumulative distribution function
A2: 8.356383324 | B2: 0
A3: 8.356383324 | B3: 0
A4: 8.398868561 | B4: 0
A5: 8.441353798 | B5: 0
A6: 8.483839035 | B6: 0
A7: 8.526324272 | B7: 0
A8: 8.568810463 | B8: 0
A9: 8.6112957 | B9: 0
A10: 8.653780937 | B10: 0
A11: 8.696266174 | B11: 0
A12: 8.738751411 | B12: 0
A13: 8.781236649 | B13: 0.0003333333298
A14: 8.823721886 | B14: 0.0003333333298
A15: 8.866207123 | B15: 0.0003333333298
A16: 8.908693314 | B16: 0.0003333333298
A17: 8.951178551 | B17: 0.0009999999311
A18: 8.993663788 | B18: 0.001333333319
A19: 9.036149025 | B19: 0.001333333319
A20: 9.078634262 | B20: 0.00233333325
A21: 9.121119499 | B21: 0.00233333325
A22: 9.163604736 | B22: 0.002666666638
A23: 9.206089973 | B23: 0.003333333414
A24: 9.248575211 | B24: 0.005333333276
A25: 9.291061401 | B25: 0.00633333344
A26: 9.333546638 | B26: 0.007333333604
A27: 9.376031876 | B27: 0.008666667156
A28: 9.418517113 | B28: 0.0103333341
A29: 9.46100235 | B29: 0.01400000136
A30: 9.503487587 | B30: 0.01566666737
A31: 9.545972824 | B31: 0.02133333497
A32: 9.588458061 | B32: 0.02900000289
A33: 9.630943298 | B33: 0.03466666862
A34: 9.673429489 | B34: 0.04166666791
A35: 9.715914726 | B35: 0.05000000075
A36: 9.758399963 | B36: 0.06100000069
A37: 9.800885201 | B37: 0.06899999827
A38: 9.843370438 | B38: 0.07933333516
A39: 9.885855675 | B39: 0.0856666714
A40: 9.928340912 | B40: 0.09333334118
A41: 9.970826149 | B41: 0.1066666767
A42: 10.01331234 | B42: 0.1180000082
A43: 10.05579758 | B43: 0.1343333423
A44: 10.09828281 | B44: 0.1476666778
A45: 10.14076805 | B45: 0.1640000045
A46: 10.18325329 | B46: 0.1813333333
A47: 10.22573853 | B47: 0.200000003
A48: 10.26822376 | B48: 0.2183333337
A49: 10.310709 | B49: 0.2380000055
A50: 10.35319424 | B50: 0.2580000162
A51: 10.39568043 | B51: 0.2820000052
A52: 10.43816566 | B52: 0.3003333509
A53: 10.4806509 | B53: 0.3220000267
A54: 10.52313614 | B54: 0.3483333588
A55: 10.56562138 | B55: 0.3743333519
A56: 10.60810661 | B56: 0.3983333409
A57: 10.65059185 | B57: 0.426666677
A58: 10.69307709 | B58: 0.4520000219
A59: 10.73556328 | B59: 0.4763333499
A60: 10.77804852 | B60: 0.5036666989
A61: 10.82053375 | B61: 0.5326666832
A62: 10.86301899 | B62: 0.5600000024
A63: 10.90550423 | B63: 0.5849999785
A64: 10.94798946 | B64: 0.6123332977
A65: 10.9904747 | B65: 0.6356666088
A66: 11.03295994 | B66: 0.6599999666
A67: 11.07544518 | B67: 0.6836666465
A68: 11.11793137 | B68: 0.7076666355
A69: 11.1604166 | B69: 0.7273333073
A70: 11.20290184 | B70: 0.7486666441
A71: 11.24538708 | B71: 0.7709999681
A72: 11.28787231 | B72: 0.793333292
A73: 11.33035755 | B73: 0.8076665998
A74: 11.37284279 | B74: 0.8259999156
A75: 11.41532803 | B75: 0.8419998884
A76: 11.45781422 | B76: 0.8586665392
A77: 11.50029945 | B77: 0.8719998598
A78: 11.54278469 | B78: 0.8863331676
A79: 11.58526993 | B79: 0.898666501
A80: 11.62775517 | B80: 0.9103331566
A81: 11.6702404 | B81: 0.921666503
A82: 11.71272564 | B82: 0.9306665063
A83: 11.75521088 | B83: 0.9396665096
A84: 11.79769611 | B84: 0.9473331571
A85: 11.8401823 | B85: 0.9529998302
A86: 11.88266754 | B86: 0.9599998593
A87: 11.92515278 | B87: 0.9666665196
A88: 11.96763802 | B88: 0.9689998627
A89: 12.01012325 | B89: 0.9723331928
A90: 12.05260849 | B90: 0.975666523
A91: 12.09509373 | B91: 0.9783331752
A92: 12.13757896 | B92: 0.9826664925
A93: 12.18006516 | B93: 0.9856665134
A94: 12.22255039 | B94: 0.9893331528
A95: 12.26503563 | B95: 0.9903331399
A96: 12.30752087 | B96: 0.9916664958
A97: 12.3500061 | B97: 0.9933331609
A98: 12.39249134 | B98: 0.9936664701
A99: 12.43497658 | B99: 0.9956664443
A100: 12.47746181 | B100: 0.9966664314
A101: 12.51994705 | B101: 0.9973331094
A102: 12.56243324 | B102: 0.9979997873
A103: 12.60491848 | B103: 0.9983330965
A104: 13.45462513 | B104: 0.9983330965
